fUSD/lending_fUSD_20260413
["ID","MTS","AMOUNT","RATE_DAILY","PERIOD"]
[420384795,1776061833511,-1137.0,0.00025116,7]
[420384796,1776061833520,-1137.0,0.00025116,7]
[420384797,1776061833530,-1137.0,0.00025116,7]
[420384798,1776061833539,-1137.0,0.00025116,7]
[420384799,1776061833551,-1137.0,0.00025116,7]
[420384800,1776061833565,-1137.0,0.00025116,7]
[420384801,1776061833574,-1137.0,0.00025116,7]
[420384802,1776061833585,-500.0,0.00025116,7]
[420384803,1776061833598,-500.0,0.00025116,7]
[420384804,1776061833608,-500.0,0.00025116,7]
[420384805,1776061833617,-500.0,0.00025116,7]
[420384806,1776061833626,-1137.0,0.00025116,7]
[420384807,1776061833650,-500.0,0.00025116,7]
[420384808,1776061833659,-505.72457062,0.00025116,7]
[420384809,1776061833668,-1137.0,0.00025116,7]
[420384810,1776061833681,-1137.0,0.00025116,7]
[420384811,1776061833699,-1137.0,0.00025116,7]
[420384812,1776061833710,-1137.0,0.00025116,7]
[420384813,1776061833719,-1137.0,0.00025116,7]
[420384814,1776061833743,-1101.59639595,0.00025116,7]
[420384815,1776061833758,-35.40360405,0.00025116,7]
[420384816,1776061833773,-1142.1761962,0.00025116,7]
[420384817,1776061833793,-151.87358704,0.00025116,7]
[420384818,1776061833802,-500.0,0.00025149,2]
[420384819,1776061833824,-500.0,0.00025204,2]
[420384820,1776061833840,-166.66,0.00025252,30]
[420384821,1776061833852,-500.0,0.00025259,2]
[420384822,1776061833871,-500.0,0.00025314,2]
[420384823,1776061833886,-152.00320659,0.00025319,2]
[420384824,1776061833902,-500.0,0.00025369,2]
[420384825,1776061833913,-363.0,0.00025374,2]
[420384826,1776061833937,-503.37955602,0.0002539,7]
[420384827,1776061833948,-401.76,0.0002539,2]
[420384828,1776061833964,-500.0,0.00025424,2]
[420384829,1776061833981,-4653.7991472,0.00025434,2]
[420384830,1776061833993,-165.553,0.0002546,5]
[420384831,1776061834023,-500.0,0.00025479,2]
[420384832,1776061834032,-153.674643,0.00025494,7]
[420384833,1776061834056,-200.0,0.00025517,2]
[420384834,1776061834076,-500.0,0.00025517,2]
[420384835,1776061834087,-201.55934797,0.00025517,2]
[420384836,1776061834111,-5305.06420051,0.00025517,2]
[420384837,1776061834169,-2380.45611856,0.00025517,2]
[420384841,1776061834844,-150.0,0.00024252,7]
[420384842,1776061834864,-262.35092724,0.00025517,2]
[420384843,1776061834876,-500.0,0.00025517,2]
[420384844,1776061834890,-449.33776678,0.00025517,2]
[420384891,1776061841601,-175.10302845,0.00025517,2]
[420384892,1776061841612,-151.0,0.00025517,2]
[420384893,1776061841627,-500.0,0.00025517,2]
[420384894,1776061841639,-151.0,0.00025517,2]
[420384895,1776061841652,-500.0,0.00025517,2]
[420384896,1776061841664,-151.0,0.00025517,2]
[420384897,1776061841678,-500.0,0.00025517,2]
[420384898,1776061842519,-151.0,0.00025517,2]
[420384899,1776061842565,-500.0,0.00025517,2]
[420384900,1776061842599,-151.0,0.00025517,2]
[420384901,1776061842624,-500.0,0.00025517,2]
[420384902,1776061842639,-151.0,0.00025517,2]
[420384903,1776061842652,-500.0,0.00025517,2]
[420384904,1776061842669,-151.0,0.00025517,2]
[420384905,1776061842679,-284.67647252,0.00025517,2]
[420384913,1776061846976,-215.32352748,0.00025517,2]
[420384914,1776061846985,-151.0,0.00025517,2]
[420384915,1776061846995,-151.0,0.00025517,2]
[420384916,1776061847019,-151.0,0.00025517,2]
[420384917,1776061847029,-151.0,0.00025517,2]
[420384918,1776061847039,-151.0,0.00025517,2]
[420384919,1776061847063,-151.0,0.00025517,2]
[420384920,1776061847075,-151.0,0.00025517,2]
[420384921,1776061847086,-151.0,0.00025517,2]
[420384922,1776061847109,-151.0,0.00025517,2]
[420384923,1776061847120,-500.0,0.00025517,2]
[420384924,1776061847131,-151.0,0.00025517,2]
[420384925,1776061847146,-151.0,0.00025517,2]
[420384926,1776061847157,-160.45372666,0.00025517,2]
[420384927,1776061847292,-14.20086417,0.00025517,2]
[420384928,1776061847308,-151.0,0.00025517,2]
[420384929,1776061847320,-151.0,0.00025517,2]
[420384930,1776061847333,-151.0,0.00025517,2]
[420384931,1776061847354,-151.0,0.00025517,2]
[420384932,1776061847364,-151.0,0.00025517,2]
[420384933,1776061847382,-151.0,0.00025517,2]
[420384934,1776061847402,-174.61919141,0.00025517,2]
[420384935,1776061847412,-151.0,0.00025517,2]
[420384936,1776061847425,-151.0,0.00025517,2]
[420384937,1776061847445,-151.0,0.00025517,2]
[420384938,1776061847456,-151.0,0.00025517,2]
[420384939,1776061847469,-160.07764278,0.00025517,2]
[420384940,1776061847488,-283.38348587,0.00025517,2]
[420384941,1776061847510,-151.0,0.00025529,7]
[420384942,1776061847520,-9477.0310526,0.00025532,2]
[420384951,1776061850654,-2535.41910301,0.00025532,2]
[420384952,1776061850669,-292.67,0.00025532,2]
[420384961,1776061851125,-65.43966654,0.00025532,2]
[420385005,1776061851871,-6051.23615896,0.00025532,2]
[420385024,1776061852156,-121.95023583,0.00025532,2]
[420385051,1776061852552,-18798.82344879,0.00025532,2]
[420385053,1776061852572,-1919.66155475,0.00025532,2]
[420385061,1776061852662,-422.8955016,0.00025532,2]
[420385118,1776061855811,3005.0,0.00030137,120]
[420385119,1776061858071,10000.0,0.00030136,120]
[420385120,1776061873214,185.0,0.00029982,120]
[420385121,1776061999639,150.0,0.00029041,120]
[420385122,1776062000557,266.0,0.00029041,120]
[420385129,1776062167253,-407.53,0.00012773,2]
[420385130,1776062167284,-407.53,0.00013446,2]
[420385131,1776062167318,-196.11919851,0.00014051,2]
[420385132,1776062167358,-407.53,0.00014118,2]
[420385133,1776062167397,-407.53,0.0001479,2]
[420385134,1776062167438,-407.53,0.00015463,2]
[420385135,1776062167484,-124.94160298,0.00016135,2]
[420385136,1776062168381,-282.58839702,0.00016135,2]
[420385137,1776062168410,-407.53,0.00016807,2]
[420385138,1776062177780,162.49599651,0.00015362,2]
[420385140,1776062355739,248.0,0.0002844,120]
[420385141,1776062653451,245.0,0.00028285,120]
[420385142,1776062756155,-407.53,0.00017479,2]
[420385143,1776062756198,-646.19892884,0.00017973,2]
[420385144,1776062756243,-169.75344346,0.00017973,2]
[420385145,1776062756304,-309.1792907,0.00017973,2]
[420385146,1776062756356,-246.50226652,0.00017973,2]
[420385147,1776062756405,-500.0,0.00017973,2]
[420385148,1776062756446,-476.85773322,0.00017973,2]
[420385149,1776062756492,-500.0,0.00017973,2]
[420385150,1776062756549,-500.0,0.00017973,2]
[420385151,1776062756664,-300.0,0.00017988,2]
[420385152,1776062756714,-1200.0,0.00017988,2]
[420385153,1776062756755,-550.0,0.00017988,2]
[420385154,1776062756788,-300.0,0.00017988,2]
[420385155,1776062756820,-200.0,0.00017989,2]
[420385156,1776062756852,-151.0,0.00017989,2]
[420385157,1776062756885,-500.0,0.00017989,2]
[420385158,1776062756923,-151.0,0.00017989,2]
[420385159,1776062756954,-500.0,0.00017989,2]
[420385160,1776062756984,-151.0,0.00017989,2]
[420385161,1776062757016,-500.0,0.00017989,2]
[420385162,1776062757046,-151.0,0.00017989,2]
[420385163,1776062757075,-500.0,0.00017989,2]
[420385164,1776062757107,-151.0,0.00017989,2]
[420385165,1776062757138,-215.32352748,0.00017989,2]
[420385166,1776062757174,-151.0,0.00017989,2]
[420385167,1776062757218,-151.0,0.00017989,2]
[420385168,1776062757264,-151.0,0.00017989,2]
[420385169,1776062757632,-151.0,0.00017989,2]
[420385170,1776062757701,-151.0,0.00017989,2]
[420385171,1776062757745,-151.0,0.00017989,2]
[420385172,1776062757789,-151.0,0.00017989,2]
[420385173,1776062757829,-151.0,0.00017989,2]
[420385174,1776062757862,-151.0,0.00017989,2]
[420385175,1776062757894,-151.0,0.00017989,2]
[420385176,1776062757933,-151.0,0.00017989,2]
[420385177,1776062757985,-151.0,0.00017989,2]
[420385178,1776062758049,-500.0,0.00017989,2]
[420385179,1776062758094,-151.0,0.00017989,2]
[420385180,1776062758140,-500.0,0.00017989,2]
[420385181,1776062758186,-151.0,0.00017989,2]
[420385182,1776062758230,-500.0,0.00017989,2]
[420385183,1776062758277,-151.0,0.00017989,2]
[420385184,1776062758335,-467.08679136,0.00017989,2]
[420385185,1776062758374,-151.0,0.00017989,2]
[420385186,1776062758411,-151.0,0.00017989,2]
[420385187,1776062758452,-151.0,0.00017989,2]
[420385188,1776062758507,-151.0,0.00017989,2]
[420385189,1776062758563,-151.0,0.00017989,2]
[420385190,1776062758621,-151.0,0.00017989,2]
[420385191,1776062758674,-151.0,0.00017989,2]
[420385192,1776062758728,-151.0,0.00017989,2]
[420385193,1776062758763,-151.0,0.00017989,2]
[420385194,1776062758800,-151.0,0.00017989,2]
[420385195,1776062758837,-151.0,0.00017989,2]
[420385196,1776062758875,-151.0,0.00017989,2]
[420385197,1776062758912,-151.0,0.00017989,2]
[420385198,1776062758945,-151.0,0.00017989,2]
[420385199,1776062758977,-151.0,0.00017989,2]
[420385200,1776062759009,-77348.69622403,0.00018,2]
[420385201,1776062759046,-500.0,0.00018,2]
[420385202,1776062761948,250.0,0.00013,2]
[420385203,1776062762158,300.0,0.00015,2]
[420385204,1776062763279,350.0,0.00017,2]
[420385205,1776062765913,159.9872,0.00017973,2]
[420385206,1776062769037,500.0,0.00017973,2]
[420385207,1776062799943,1800.0,0.0003011,120]
[420385208,1776062829066,151.0,0.00017989,2]
[420385209,1776062829845,151.0,0.00017989,2]
[420385210,1776062830938,151.0,0.00017989,2]
[420385211,1776062831389,151.0,0.00017989,2]
[420385212,1776062831676,151.0,0.00017989,2]
[420385213,1776062832220,201.87064827,0.00017989,2]
[420385214,1776062832302,253.95132556,0.00017989,2]
[420385215,1776062839707,151.0,0.00017989,2]
[420385216,1776062842341,151.0,0.00017989,2]
[420385217,1776062842992,151.0,0.00017989,2]
[420385218,1776062860930,317.5240779,0.00017999,2]
[420385219,1776062947533,-407.53,0.00018152,2]
[420385220,1776062947562,-300.0,0.00018823,2]
[420385221,1776062947589,-407.53,0.00018824,2]
[420385222,1776062947615,-150.99,0.00018824,2]
[420385223,1776062947637,-91.10123316,0.00018824,4]
[420385224,1776062970305,-208.88876684,0.00018824,4]
[420385225,1776062970326,-1321.9937562,0.00018824,2]
[420385227,1776062988101,2193.5551966,0.00017999,2]
[420385245,1776063033610,-177.08,0.00018022,2]
[420385246,1776063033625,-4921.2462438,0.00018824,2]
[420385247,1776063033638,-407.53,0.00019496,2]
[420385248,1776063033667,-1716.80460658,0.00019694,2]
[420385249,1776063033677,-1200.0,0.00019723,2]
[420385250,1776063033686,-407.53,0.00020168,2]
[420385251,1776063033708,-150.0,0.000203,2]
[420385252,1776063033718,-300.0,0.00020311,2]
[420385253,1776063033728,-2193.5551966,0.00020312,2]
[420385254,1776063033747,-317.5240779,0.00020313,2]
[420385255,1776063033756,-177.08,0.00020348,2]
[420385256,1776063033765,-151.0,0.00020728,2]
[420385257,1776063033783,-407.53,0.00020841,2]
[420385258,1776063033798,-156.696,0.000211,2]
[420385259,1776063033807,-407.53,0.00021513,2]
[420385260,1776063033820,-1680.0,0.00021586,2]
[420385261,1776063033830,-163.691,0.00022,2]
[420385262,1776063033845,-420.0,0.0002211,2]
[420385263,1776063033857,-407.53,0.00022185,2]
[420385264,1776063033866,-500.0,0.00022549,2]
[420385265,1776063033877,-3080.82,0.00022561,2]
[420385266,1776063033889,-1057.83,0.00022562,2]
[420385267,1776063033906,-2193.5551966,0.00022626,2]
[420385268,1776063033916,-317.5240779,0.00022627,2]
[420385269,1776063033926,-226.27,0.00022668,3]
[420385270,1776063033938,-177.08,0.00022675,2]
[420385271,1776063033950,-200.0,0.0002273,2]
[420385272,1776063033960,-407.53,0.00022858,2]
[420385273,1776063033970,-170.9983,0.000229,2]
[420385274,1776063033987,-923.46,0.00023115,2]
[420385275,1776063033997,-3240.0,0.00023209,2]
[420385276,1776063034007,-736.78,0.00023267,2]
[420385277,1776063034017,-156.34,0.00023288,2]
[420385278,1776063034039,-171.90896635,0.00023467,2]
[420385279,1776063034049,-407.53,0.0002353,2]
[420385280,1776063034065,-989.0,0.00023624,2]
[420385281,1776063034085,-178.6317,0.000238,2]
[420385282,1776063034095,-587.0,0.00024068,2]
[420385283,1776063034112,-500.0,0.00024117,2]
[420385284,1776063034134,-407.53,0.00024202,2]
[420385285,1776063034152,-923.46,0.00024271,2]
[420385286,1776063034182,-578.20924308,0.00024543,2]
[420385287,1776063034198,-174.61919141,0.00024543,2]
[420385288,1776063034221,-151.0,0.00024543,2]
[420385289,1776063034230,-151.0,0.00024598,2]
[420385290,1776063034250,-151.0,0.00024653,2]
[420385291,1776063034276,-1000.0,0.00024658,2]
[420385292,1776063034317,-186.6059,0.000247,2]
[420385293,1776063034377,-4188.41923248,0.00024752,2]
[420385294,1776063034389,-897.12,0.00024842,3]
[420385295,1776063034418,-508.03570381,0.00024851,2]
[420385296,1776063034431,-3056.1900894,0.00024852,2]
[420385297,1776063034446,-29247.9562881,0.00024852,2]
[420385298,1776063034468,-81560.7613288,0.00024852,2]
[420385299,1776063034478,-152.380208,0.00024852,2]
[420385300,1776063034494,-1027.259615,0.00024852,2]
[420385301,1776063034524,-1027.259615,0.00024852,2]
[420385302,1776063034534,-1027.259615,0.00024852,2]
[420385303,1776063034546,-1027.259615,0.00024852,2]
[420385304,1776063034566,-1296.6723542,0.00024852,2]
[420385305,1776063034576,-152.367709,0.00024852,2]
[420385306,1776063034589,-500.0,0.00024873,2]
[420385307,1776063034607,-407.53,0.00024874,2]
[420385308,1776063034617,-2193.5551966,0.00024939,2]
[420385309,1776063034630,-317.5240779,0.0002494,2]
[420385310,1776063034640,-177.08,0.00025001,2]
[420385311,1776063034655,-154.86476089,0.00025045,2]
[420385312,1776063034666,-150.0,0.00025045,2]
[420385313,1776063034678,-500.0,0.00025045,2]
[420385314,1776063034694,-150.0,0.00025045,2]
[420385315,1776063034704,-500.0,0.00025045,2]
[420385316,1776063034714,-150.0,0.00025045,2]
[420385317,1776063034725,-500.0,0.00025045,2]
[420385318,1776063034741,-239.74746028,0.00025045,2]
[420385319,1776063034755,-302.94535556,0.00025045,2]
[420385320,1776063034766,-153.49144431,0.00025045,2]
[420385321,1776063034779,-159.10883896,0.00025045,2]
[420385322,1776063034795,-153.8681596,0.00025045,2]
[420385323,1776063034810,-250.0,0.00025045,2]
[420385324,1776063034826,-250.0,0.00025045,2]
[420385325,1776063034840,-250.0,0.00025045,2]
[420385326,1776063034875,-256.95165616,0.00025045,2]
[420385327,1776063034887,-150.0,0.00025045,2]
[420385328,1776063034908,-165.27012757,0.00025045,2]
[420385329,1776063034923,-162.10283094,0.00025045,2]
[420385330,1776063034944,-500.0,0.00025045,2]
[420385331,1776063034966,-500.0,0.00025045,2]
[420385332,1776063034982,-500.0,0.00025045,2]
[420385333,1776063034998,-500.0,0.00025045,2]
[420385334,1776063035025,-500.0,0.00025045,2]
[420385335,1776063035041,-500.0,0.00025045,2]
[420385336,1776063035052,-500.0,0.00025045,2]
[420385337,1776063035076,-500.0,0.00025045,2]
[420385338,1776063035085,-500.0,0.00025045,2]
[420385339,1776063035095,-245.03515654,0.00025045,2]
[420385340,1776063035110,-500.0,0.00025045,2]
[420385341,1776063035123,-500.0,0.00025045,2]
[420385342,1776063035133,-150.0,0.00025045,2]
[420385343,1776063035155,-463.27285639,0.00025045,2]
[420385344,1776063035165,-4188.41923239,0.00025102,2]
[420385345,1776063035179,-428.15,0.00025243,2]
[420385346,1776063035190,-768.0,0.00025322,10]
[420385347,1776063035203,-611.0,0.00025322,10]
[420385348,1776063035212,-1000.0,0.00025421,2]
[420385349,1776063035222,-923.46,0.00025427,2]
[420385350,1776063035234,-428.15,0.00025517,2]
[420385351,1776063035257,-2500.0,0.00025523,2]
[420385352,1776063035276,-345.9320893,0.00025529,2]
[420385353,1776063035294,-150.0,0.00025532,2]
[420385354,1776063035303,-249.98,0.00025534,6]
[420385355,1776063035321,-407.53,0.00025547,2]
[420385356,1776063035339,-1268.66,0.00025575,2]
[420385357,1776063035355,-250.0,0.00025589,6]
[420385358,1776063035373,-150.0,0.00025594,2]
[420385359,1776063035388,-151.0,0.00025595,2]
[420385360,1776063035400,-565.56611679,0.00025595,2]
[420385361,1776063035411,-194.9361,0.000256,2]
[420385362,1776063035433,-152.0,0.00025603,7]
[420385363,1776063035447,-5001.85,0.00025604,2]
[420385364,1776063035480,-151.0,0.0002562,7]
[420385365,1776063035489,-151.0,0.00025623,2]
[420385366,1776063035497,-170.945465,0.00025623,2]
[420385367,1776063035526,-151.0,0.00025623,2]
[420385368,1776063035535,-151.0,0.00025623,2]
[420385369,1776063035549,-151.0,0.00025623,2]
[420385370,1776063035572,-151.0,0.00025623,2]
[420385371,1776063035582,-151.0,0.00025623,2]
[420385372,1776063035597,-151.0,0.00025623,2]
[420385373,1776063035611,-3649.247,0.00025623,2]
[420385374,1776063035620,-1050.304,0.00025623,2]
[420385375,1776063035628,-1348.0,0.00025623,2]
[420385376,1776063035645,-625.392,0.00025623,2]
[420385377,1776063035657,-150.156,0.00025623,2]
[420385378,1776063035666,-1264.0,0.00025623,2]
[420385379,1776063035677,-2482.874,0.00025623,2]
[420385380,1776063035691,-6026.0,0.00025623,2]
[420385381,1776063035700,-152.0,0.00025651,7]
[420385382,1776063035711,-77.44043152,0.00025651,7]
[420385383,1776063035731,-74.55956848,0.00025651,7]
[420385384,1776063035741,-152.0,0.00025651,7]
[420385385,1776063035752,-150.0,0.00025656,2]
[420385386,1776063035762,-1027.259615,0.00025706,2]
[420385387,1776063035774,-1027.259615,0.00025706,2]
[420385388,1776063035785,-1027.259615,0.00025706,2]
[420385389,1776063035801,-1027.259615,0.00025706,2]
[420385390,1776063035811,-151.0,0.00025706,2]
[420385391,1776063035822,-151.0,0.00025706,2]
[420385392,1776063035836,-469.85,0.00025716,2]
[420385393,1776063035845,-166.66,0.00025752,30]
[420385394,1776063035856,-2000.0,0.00025763,2]
[420385395,1776063035866,-352.14357616,0.00025772,5]
[420385396,1776063035882,-428.15,0.00025791,2]
[420385397,1776063035892,-189.95304308,0.00025815,2]
[420385398,1776063035902,-500.0,0.00025927,2]
[420385399,1776063035912,-582.74363372,0.00025927,2]
[420385400,1776063035922,-502.40958183,0.00025927,2]
[420385401,1776063035934,-1500.0,0.00025968,2]
[420385402,1776063035943,-5000.0,0.00025989,2]
[420385403,1776063035955,-1000.0,0.00026003,2]
[420385404,1776063035964,-1000.0,0.00026012,2]
[420385405,1776063035983,-168.0,0.00026035,2]
[420385406,1776063035993,-504.16318731,0.0002606,2]
[420385407,1776063036010,-502.0585173,0.0002606,2]
[420385408,1776063036020,-428.15,0.00026065,2]
[420385409,1776063036030,-155.03,0.00026206,2]
[420385410,1776063036049,-501.44544862,0.0002622,2]
[420385411,1776063036059,-166.66,0.00026252,30]
[420385412,1776063036069,-151.0,0.00026253,2]
[420385413,1776063036083,-151.0,0.00026253,2]
[420385414,1776063036102,-151.0,0.00026253,2]
[420385415,1776063036112,-151.0,0.00026253,2]
[420385416,1776063036121,-35.126984,0.00026253,2]
[420385417,1776063036144,-115.873016,0.00026253,2]
[420385418,1776063036154,-151.0,0.00026253,2]
[420385419,1776063036167,-151.0,0.00026253,2]
[420385420,1776063036176,-118.4249118,0.00026253,2]
[420385450,1776063041661,-3852.0,0.00025452,2]
[420385451,1776063041702,-336.41923239,0.00025452,2]
[420385452,1776063041729,-1863.58076761,0.00025801,2]
[420385453,1776063042209,-374.80260705,0.00025801,2]
[420385482,1776063042671,-587.0,0.00025801,10]
[420385484,1776063042684,-1950.03585773,0.00025801,2]
[420385486,1776063042695,-113.3106942,0.00026253,2]
[420385488,1776063042713,-151.0,0.00026253,2]
[420385490,1776063042742,-152.05692923,0.00026253,2]
[420385493,1776063042752,-266.66087491,0.00026253,2]
[420385495,1776063042780,-16.12218348,0.00026253,2]
[420385497,1776063042789,-343.0,0.00026253,10]
[420385499,1776063042805,-1027.259615,0.00026254,2]
[420385501,1776063042815,-1027.259615,0.00026254,2]
[420385503,1776063042827,-1027.259615,0.00026254,2]
[420385505,1776063042836,-1027.259615,0.00026254,2]
[420385507,1776063042860,-1027.259615,0.00026254,2]
[420385509,1776063042871,-1027.259615,0.00026254,2]
[420385511,1776063042887,-1027.259615,0.00026254,2]
[420385513,1776063042910,-1027.259615,0.00026254,2]
[420385515,1776063042920,-151.0,0.00026254,2]
[420385517,1776063042930,-151.0,0.00026254,2]
[420385519,1776063042956,-151.0,0.00026254,2]
[420385521,1776063042966,-151.0,0.00026254,2]
[420385524,1776063042980,-151.0,0.00026254,2]
[420385526,1776063043003,-151.0,0.00026254,2]
[420385527,1776063043013,-151.0,0.00026254,2]
[420385529,1776063043024,-151.0,0.00026254,2]
[420385531,1776063043046,-395.0,0.00026255,7]
[420385533,1776063043056,-287.31777848,0.00026273,2]
[420385537,1776063043099,-212.68222152,0.00026273,2]
[420385539,1776063043120,-202.32423888,0.00026273,2]
[420385705,1776063045658,-927.92598157,0.00026151,2]
[420385707,1776063045685,-3260.49325082,0.00026151,2]
[420385709,1776063045695,-54.70984456,0.00026273,2]
[420385711,1776063045716,-501.3772868,0.00026273,2]
[420385713,1776063045728,-502.24584701,0.00026273,2]
[420385714,1776063045738,-500.0,0.00026273,2]
[420385716,1776063045759,-245.70935257,0.00026273,2]
[420385718,1776063045769,-349.61058898,0.00026273,2]
[420385720,1776063045778,-502.93311877,0.00026273,2]
[420385722,1776063045797,-505.32973439,0.00026273,2]
[420385724,1776063045806,-500.57600913,0.00026273,2]
[420385725,1776063045815,-502.12129548,0.00026273,2]
[420385726,1776063045825,-282.78305839,0.00026273,2]
[420385728,1776063045845,-655.0,0.00026273,10]
[420385730,1776063045858,-372.0,0.00026273,10]
[420385733,1776063045870,-167.37,0.00026298,2]
[420385734,1776063045881,-216.0,0.00026312,2]
[420385736,1776063045895,-2500.3763149,0.0002633,2]
[420385739,1776063045909,-2067.03397672,0.0002633,2]
[420385740,1776063045920,-428.16654162,0.00026339,2]
[420385742,1776063045930,-167.37,0.00026343,2]
[420385744,1776063045939,-469.85,0.00026343,2]
[420385746,1776063045951,-500.0,0.00026356,7]
[420385748,1776063045963,-500.0,0.00026356,7]
[420385750,1776063045973,-150.47111164,0.00026382,2]
[420385751,1776063045982,-168.0,0.00026394,2]
[420385753,1776063045994,-216.0,0.000264,7]
[420385755,1776063046011,-1563.0,0.0002643,5]
[420385757,1776063046022,-281.63,0.0002643,2]
[420385759,1776063046045,-1000.0,0.00026431,2]
[420385761,1776063046055,-487.0,0.00026431,2]
[420385763,1776063046068,-487.0,0.00026431,2]
[420385765,1776063046082,-487.0,0.00026431,2]
[420385767,1776063046092,-832.14,0.00026431,2]
[420385769,1776063046102,-500.0,0.00026439,2]
[420385771,1776063046123,-500.0,0.00026439,2]
[420385773,1776063046133,-500.0,0.00026439,2]
[420385775,1776063046147,-500.0,0.00026439,2]
[420385776,1776063046165,-500.0,0.00026439,2]
[420385778,1776063046177,-500.0,0.00026439,2]
[420385780,1776063046191,-500.0,0.00026439,2]
[420385782,1776063046207,-500.0,0.00026439,2]
[420385784,1776063046218,-500.0,0.00026439,2]
[420385785,1776063046235,-500.0,0.00026439,2]
[420385787,1776063046261,-421.86604688,0.00026439,2]
[420385791,1776063046302,-78.13395312,0.00026439,2]
[420385792,1776063046312,-379.85286847,0.00026439,2]
[420385796,1776063046385,-120.14713153,0.00026439,2]
[420385798,1776063046430,-500.0,0.00026439,2]
[420385800,1776063046442,-500.0,0.00026439,2]
[420385802,1776063046456,-500.0,0.00026439,2]
[420385804,1776063046480,-500.0,0.00026439,2]
[420385806,1776063046490,-500.0,0.00026439,2]
[420385808,1776063046504,-148.41838268,0.00026439,2]
[420386163,1776063095526,380.57,0.00025849,120]
[420386164,1776063095750,380.57,0.0002908,120]
[420386165,1776063107124,494.92706503,0.0003013,120]
[420386166,1776063123478,5000.0,0.0002637,120]
[420386167,1776063150085,1945.8,0.00030082,120]
[420386168,1776063150622,594.62773877,0.0001,2]
[420386170,1776063182910,5000.0,0.00023065,120]
[420386171,1776063183036,5056.85929703,0.00020984,120]
[420386172,1776063197235,48.35560729,0.00016636,30]
[420386173,1776063197266,4318.29439271,0.00016636,30]
[420386174,1776063270070,338.0,0.00012088,2]
[420386175,1776063270765,338.0,0.00014182,2]
[420386176,1776063271351,340.6262058,0.00014891,2]
[420386177,1776063294506,5000.01,0.000172,2]
[420386178,1776063294536,5000.01,0.000172,2]
[420386179,1776063294560,1169.98,0.000172,2]
[420386180,1776063297390,1013.0,0.0001667,2]
[420386181,1776063373102,194.0,0.00028,120]
[420386182,1776063448234,5000.01,0.00018,2]
[420386183,1776063448258,5000.01,0.00018,2]
[420386184,1776063448282,5000.01,0.00018,2]
[420386185,1776063448306,5000.01,0.00018,2]
[420386186,1776063448329,5000.01,0.00018,2]
[420386187,1776063448352,5000.01,0.00018,2]
[420386188,1776063475567,-2409.82635388,0.00018,2]
[420386189,1776063475598,-5000.01,0.00018,2]
[420386190,1776063475617,-5000.01,0.00018,2]
[420386191,1776063478346,-5000.01,0.00018,2]
[420386192,1776063482551,-5000.01,0.00018,2]
[420386193,1776063482587,-5000.01,0.00018,2]
[420386194,1776063482620,-5000.01,0.00018,2]
[420386195,1776063487539,-5000.01,0.00018,2]
[420386196,1776063487600,-216.42150718,0.00018,2]
[420386197,1776063487774,-4567.16698564,0.00018,2]
[420386198,1776063488362,5095.116643,7.945e-05,2]
[420386200,1776063548503,742.11228,7.945e-05,2]